fUSD/lending_fUSD_20250616
["ID","MTS","AMOUNT","RATE_DAILY","PERIOD"]
[366081070,1750054007470,10000.0,0.00024658,120]
[366081071,1750054015852,1468.5,0.00015531,2]
[366081072,1750054023998,300.0,0.000159,5]
[366081073,1750054026082,600.0,0.00016,5]
[366081109,1750054039926,4304.5,0.00016,2]
[366081115,1750054174145,1000.0,0.00015472,2]
[366081128,1750054231834,-169.54,0.00016013,2]
[366081129,1750054231846,-225.63093248,0.0001606,2]
[366081130,1750054232001,-24.36906752,0.0001606,2]
[366081131,1750054232012,-900.0,0.000161,5]
[366081132,1750054232023,-204.0,0.0001615,2]
[366081133,1750054232033,-1200.0,0.000162,5]
[366081134,1750054232043,-207.4,0.00016258,2]
[366081135,1750054232053,-300.0,0.00016267,2]
[366081136,1750054232064,-1200.0,0.00016267,2]
[366081137,1750054232073,-300.0,0.00016267,2]
[366081138,1750054232084,-1098.64876678,0.00016268,2]
[366081139,1750054232093,-1082.1421081,0.00016268,2]
[366081140,1750054232103,-1002.46397503,0.00016268,2]
[366081141,1750054232114,-1037.75988307,0.00016268,2]
[366081143,1750054232124,-1046.53000776,0.00016268,2]
[366081145,1750054232134,-963.93704689,0.0001627,2]
[366081147,1750054232144,-1104.6671477,0.0001627,2]
[366081149,1750054232154,-1300.74807161,0.0001627,2]
[366081151,1750054232165,-1500.0,0.000163,5]
[366081152,1750054232175,-1000.0,0.000163,2]
[366081153,1750054232185,-584.41616119,0.00016338,2]
[366081154,1750054232195,-742.67398122,0.00016338,2]
[366081155,1750054232205,-584.41616117,0.00016393,2]
[366081156,1750054232214,-742.67398117,0.00016393,2]
[366081157,1750054232224,-550.0,0.00016399,2]
[366081158,1750054232235,-300.0,0.000164,5]
[366081159,1750054232245,-461.62,0.000164,2]
[366081160,1750054232259,-461.62,0.000164,2]
[366081161,1750054232270,-461.62,0.000164,2]
[366081162,1750054232280,-461.62,0.000164,2]
[366081163,1750054232289,-461.62,0.000164,2]
[366081164,1750054232299,-461.62,0.000164,2]
[366081165,1750054232309,-689.33169043,0.00016428,2]
[366081166,1750054232319,-151.0,0.00016428,2]
[366081167,1750054232329,-580.37669501,0.00016428,2]
[366081168,1750054232340,-208.56290707,0.00016437,2]
[366081169,1750054232349,-458.48953927,0.00016437,2]
[366081183,1750054237894,-557.23,0.00016437,2]
[366081184,1750054237908,-1252.09446073,0.00016437,2]
[366081185,1750054237920,-216.39966314,0.00016438,2]
[366081186,1750054237930,-490.0,0.00016438,2]
[366081187,1750054237940,-490.61557102,0.00016438,2]
[366081188,1750054237949,-490.0,0.00016438,2]
[366081189,1750054237960,-490.0,0.00016438,2]
[366081190,1750054237970,-490.0,0.00016438,2]
[366081191,1750054237980,-598.17495111,0.00016438,2]
[366081192,1750054237990,-490.0,0.00016438,2]
[366081193,1750054238000,-500.0,0.00016438,2]
[366081194,1750054238010,-500.0,0.00016438,2]
[366081195,1750054238020,-500.0,0.00016438,2]
[366081196,1750054238030,-198.17845595,0.00016438,2]
[366081197,1750054238040,-490.0,0.00016438,2]
[366081198,1750054238050,-436.37575592,0.00016438,2]
[366081199,1750054238060,-708.76,0.00016438,2]
[366081201,1750054238070,-490.0,0.00016438,2]
[366081203,1750054238080,-656.8,0.00016438,2]
[366081205,1750054238090,-954.5,0.00016438,2]
[366081207,1750054238100,-609.91,0.00016438,2]
[366081208,1750054238110,-490.0,0.00016438,2]
[366081209,1750054238120,-1288.52,0.00016438,2]
[366081210,1750054238130,-490.0,0.00016438,2]
[366081211,1750054238141,-490.0,0.00016438,2]
[366081212,1750054238150,-490.0,0.00016438,2]
[366081213,1750054238160,-490.0,0.00016438,2]
[366081214,1750054238171,-1217.74,0.00016438,2]
[366081215,1750054238182,-490.0,0.00016438,2]
[366081216,1750054238193,-490.0,0.00016438,2]
[366081217,1750054238203,-490.0,0.00016438,2]
[366081218,1750054238213,-585.75,0.00016438,2]
[366081219,1750054238223,-505.67,0.00016438,2]
[366081220,1750054238233,-490.0,0.00016438,2]
[366081221,1750054238243,-490.0,0.00016438,2]
[366081222,1750054238252,-490.0,0.00016438,2]
[366081224,1750054238266,-579.31,0.00016438,2]
[366081225,1750054238276,-490.0,0.00016438,2]
[366081226,1750054238286,-662.61,0.00016438,2]
[366081227,1750054238296,-490.0,0.00016438,2]
[366081228,1750054238306,-490.0,0.00016438,2]
[366081229,1750054238315,-490.0,0.00016438,2]
[366081230,1750054238325,-490.0,0.00016438,2]
[366081231,1750054238336,-1649.61,0.00016438,2]
[366081232,1750054238346,-490.0,0.00016438,2]
[366081233,1750054238356,-490.0,0.00016438,2]
[366081234,1750054238366,-490.0,0.00016438,2]
[366081235,1750054238375,-490.0,0.00016438,2]
[366081236,1750054238385,-592.04,0.00016438,2]
[366081237,1750054238396,-490.0,0.00016438,2]
[366081238,1750054238406,-549.0,0.00016438,2]
[366081239,1750054238418,-490.0,0.00016438,2]
[366081240,1750054238429,-490.0,0.00016438,2]
[366081241,1750054238439,-490.0,0.00016438,2]
[366081242,1750054238450,-490.0,0.00016438,2]
[366081243,1750054238460,-490.0,0.00016438,2]
[366081244,1750054238471,-500.68,0.00016438,2]
[366081245,1750054238481,-733.84,0.00016438,2]
[366081246,1750054238491,-768.27,0.00016438,2]
[366081247,1750054238500,-490.0,0.00016438,2]
[366081248,1750054238510,-627.84,0.00016438,2]
[366081249,1750054238520,-720.73,0.00016438,2]
[366081250,1750054238530,-490.0,0.00016438,2]
[366081251,1750054238540,-490.0,0.00016438,2]
[366081252,1750054238550,-1535.43,0.00016438,2]
[366081253,1750054238560,-490.0,0.00016438,2]
[366081254,1750054238570,-534.7,0.00016438,2]
[366081255,1750054238586,-1191.29,0.00016438,2]
[366081256,1750054238597,-490.0,0.00016438,2]
[366081257,1750054238607,-490.0,0.00016438,2]
[366081258,1750054238618,-490.0,0.00016438,2]
[366081259,1750054238628,-490.0,0.00016438,2]
[366081260,1750054238639,-541.49,0.00016438,2]
[366081261,1750054238650,-490.0,0.00016438,2]
[366081262,1750054238660,-490.0,0.00016438,2]
[366081263,1750054238672,-490.0,0.00016438,2]
[366081264,1750054238684,-300.0,0.00016438,2]
[366081265,1750054238694,-490.0,0.00016438,2]
[366081266,1750054238704,-490.0,0.00016438,2]
[366081267,1750054238714,-490.0,0.00016438,2]
[366081268,1750054238725,-584.59,0.00016438,2]
[366081269,1750054238735,-518.8,0.00016438,2]
[366081270,1750054238745,-1242.72,0.00016438,2]
[366081271,1750054238755,-1173.58,0.00016438,2]
[366081272,1750054238764,-547.26,0.00016438,2]
[366081273,1750054238775,-758.34,0.00016438,2]
[366081274,1750054238785,-490.0,0.00016438,2]
[366081275,1750054238795,-490.0,0.00016438,2]
[366081276,1750054238806,-345.82439857,0.00016438,2]
[366081277,1750054238816,-490.0,0.00016438,2]
[366081278,1750054238826,-1276.68,0.00016438,2]
[366081279,1750054238836,-490.0,0.00016438,2]
[366081280,1750054238846,-625.93,0.00016438,2]
[366081281,1750054238856,-842.73,0.00016438,2]
[366081282,1750054238866,-490.0,0.00016438,2]
[366081283,1750054238876,-490.0,0.00016438,2]
[366081284,1750054238885,-494.93,0.00016438,2]
[366081285,1750054238895,-490.0,0.00016438,2]
[366081286,1750054238905,-505.03,0.00016438,2]
[366081287,1750054238915,-490.0,0.00016438,2]
[366081288,1750054238924,-490.0,0.00016438,2]
[366081289,1750054238934,-490.0,0.00016438,2]
[366081290,1750054238944,-522.03,0.00016438,2]
[366081291,1750054238955,-764.72,0.00016438,2]
[366081292,1750054238965,-490.0,0.00016438,2]
[366081293,1750054238976,-418.11442166,0.00016438,2]
[366081294,1750054238985,-490.0,0.00016438,2]
[366081295,1750054238994,-490.0,0.00016438,2]
[366081296,1750054239004,-973.68,0.00016438,2]
[366081297,1750054239013,-490.0,0.00016438,2]
[366081298,1750054239029,-804.19742288,0.00016438,2]
[366081299,1750054239054,-137.19257712,0.00016438,2]
[366081300,1750054239063,-247.82144131,0.00016438,2]
[366081302,1750054239886,-242.17855869,0.00016438,2]
[366081303,1750054239896,-490.0,0.00016438,2]
[366081304,1750054239906,-1080.81,0.00016438,2]
[366081305,1750054239916,-490.0,0.00016438,2]
[366081306,1750054239926,-490.0,0.00016438,2]
[366081307,1750054239936,-490.0,0.00016438,2]
[366081308,1750054239946,-490.0,0.00016438,2]
[366081309,1750054239956,-490.0,0.00016438,2]
[366081310,1750054239966,-490.0,0.00016438,2]
[366081311,1750054239976,-932.67,0.00016438,2]
[366081312,1750054239986,-490.0,0.00016438,2]
[366081313,1750054239996,-490.0,0.00016438,2]
[366081314,1750054240005,-695.34,0.00016438,2]
[366081315,1750054240015,-490.0,0.00016438,2]
[366081316,1750054240025,-326.42336067,0.00016438,2]
[366081317,1750054240038,-177.54663933,0.00016438,2]
[366081318,1750054240048,-627.79,0.00016438,2]
[366081319,1750054240058,-490.0,0.00016438,2]
[366081320,1750054240068,-490.0,0.00016438,2]
[366081321,1750054240078,-376.76920502,0.00016438,2]
[366081322,1750054240088,-631.68,0.00016438,2]
[366081323,1750054240098,-274.82,0.00016438,2]
[366081324,1750054240108,-849.82,0.00016438,2]
[366081325,1750054240118,-541.59,0.00016438,2]
[366081326,1750054240128,-490.0,0.00016438,2]
[366081327,1750054240139,-1389.27,0.00016438,2]
[366081328,1750054240150,-193.966744,0.00016438,2]
[366081329,1750054240162,-1012.67,0.00016438,2]
[366081330,1750054240172,-1024.09,0.00016438,2]
[366081331,1750054240182,-490.0,0.00016438,2]
[366081332,1750054240192,-1091.81,0.00016438,2]
[366081333,1750054240203,-462.63920427,0.00016438,2]
[366081334,1750054240258,-27.36079573,0.00016438,2]
[366081335,1750054240269,-645.3,0.00016438,2]
[366081336,1750054240278,-490.0,0.00016438,2]
[366081337,1750054240288,-507.64,0.00016438,2]
[366081338,1750054240298,-490.0,0.00016438,2]
[366081339,1750054240307,-490.0,0.00016438,2]
[366081340,1750054240318,-490.0,0.00016438,2]
[366081341,1750054240327,-490.0,0.00016438,2]
[366081342,1750054240338,-490.0,0.00016438,2]
[366081343,1750054240348,-490.0,0.00016438,2]
[366081344,1750054240357,-500.0,0.00016438,2]
[366081345,1750054240367,-490.0,0.00016438,2]
[366081346,1750054240377,-652.81,0.00016438,2]
[366081347,1750054240388,-1477.01,0.00016438,2]
[366081348,1750054240399,-637.27,0.00016438,2]
[366081350,1750054240409,-490.0,0.00016438,2]
[366081352,1750054240421,-1373.52,0.00016438,2]
[366081353,1750054240431,-490.0,0.00016438,2]
[366081354,1750054240441,-490.0,0.00016438,2]
[366081355,1750054240452,-490.0,0.00016438,2]
[366081357,1750054240461,-1344.47,0.00016438,2]
[366081359,1750054240471,-608.38,0.00016438,2]
[366081361,1750054240482,-490.0,0.00016438,2]
[366081363,1750054240491,-558.72,0.00016438,2]
[366081364,1750054240500,-593.23,0.00016438,2]
[366081365,1750054240510,-683.97,0.00016438,2]
[366081366,1750054240519,-490.0,0.00016438,2]
[366081367,1750054240529,-490.0,0.00016438,2]
[366081368,1750054240539,-617.95,0.00016438,2]
[366081369,1750054240549,-490.0,0.00016438,2]
[366081370,1750054240559,-496.39,0.00016438,2]
[366081371,1750054240568,-490.0,0.00016438,2]
[366081372,1750054240577,-1253.12,0.00016438,2]
[366081373,1750054240587,-1369.75,0.00016438,2]
[366081374,1750054240597,-539.66,0.00016438,2]
[366081375,1750054240607,-961.36116847,0.00016438,2]
[366081376,1750054240701,-745.36883153,0.00016438,2]
[366081377,1750054240711,-743.50716869,0.00016438,2]
[366081378,1750054240728,-21.07283131,0.00016438,2]
[366081379,1750054240738,-563.14,0.00016438,2]
[366081380,1750054240748,-490.0,0.00016438,2]
[366081381,1750054240758,-490.0,0.00016438,2]
[366081382,1750054240767,-490.0,0.00016438,2]
[366081383,1750054240778,-490.0,0.00016438,2]
[366081384,1750054240789,-490.0,0.00016438,2]
[366081385,1750054240799,-249.98925708,0.00016438,2]
[366081386,1750054240808,-692.77,0.00016438,2]
[366081387,1750054240818,-490.0,0.00016438,2]
[366081388,1750054240828,-703.8,0.00016438,2]
[366081389,1750054240838,-490.0,0.00016438,2]
[366081390,1750054240847,-572.54062851,0.00016438,2]
[366081391,1750054240858,-490.0,0.00016438,2]
[366081392,1750054240868,-539.98,0.00016438,2]
[366081393,1750054240878,-519.01,0.00016438,2]
[366081394,1750054240888,-1428.68,0.00016438,2]
[366081395,1750054240897,-583.88,0.00016438,2]
[366081396,1750054240906,-632.75513098,0.00016438,2]
[366081397,1750054240916,-695.76,0.00016438,2]
[366081398,1750054240926,-559.07,0.00016438,2]
[366081399,1750054240935,-3466.197437,0.00016438,2]
[366081400,1750054240945,-1234.15,0.00016438,2]
[366081401,1750054240955,-490.0,0.00016438,2]
[366081402,1750054240965,-1104.66,0.00016438,2]
[366081403,1750054240975,-160.024811,0.00016438,2]
[366081404,1750054240984,-1804.51,0.00016438,2]
[366081405,1750054240993,-525.96,0.00016438,2]
[366081406,1750054241003,-690.0,0.00016438,2]
[366081407,1750054241012,-490.0,0.00016438,2]
[366081408,1750054241022,-1747.65,0.00016438,2]
[366081409,1750054241032,-617.78,0.00016438,2]
[366081410,1750054241042,-934.49,0.00016438,2]
[366081411,1750054241052,-828.32,0.00016438,2]
[366081412,1750054241062,-801.51,0.00016438,2]
[366081413,1750054241072,-490.0,0.00016438,2]
[366081414,1750054241082,-1700.89,0.00016438,2]
[366081415,1750054241091,-490.0,0.00016438,2]
[366081416,1750054241100,-673.61,0.00016438,2]
[366081417,1750054241109,-490.0,0.00016438,2]
[366081418,1750054241119,-490.0,0.00016438,2]
[366081419,1750054241128,-1329.89,0.00016438,2]
[366081420,1750054241137,-493.90084689,0.00016438,2]
[366081421,1750054241146,-490.0,0.00016438,2]
[366081422,1750054241156,-490.0,0.00016438,2]
[366081423,1750054241165,-991.15,0.00016438,2]
[366081424,1750054241176,-585.21,0.00016438,2]
[366081425,1750054241185,-673.18,0.00016438,2]
[366081426,1750054241195,-1464.19,0.00016438,2]
[366081427,1750054241204,-2412.321526,0.00016438,2]
[366081428,1750054241449,-490.0,0.00016438,2]
[366081429,1750054241485,-524.98,0.00016438,2]
[366081430,1750054241497,-648.03,0.00016438,2]
[366081431,1750054241508,-490.0,0.00016438,2]
[366081432,1750054241518,-490.0,0.00016438,2]
[366081433,1750054241528,-1146.51,0.00016438,2]
[366081434,1750054241539,-1151.38,0.00016438,2]
[366081435,1750054241548,-490.0,0.00016438,2]
[366081436,1750054241558,-490.0,0.00016438,2]
[366081437,1750054241568,-190.24254091,0.00016438,2]
[366081438,1750054241578,-598.48,0.00016438,2]
[366081439,1750054241587,-1197.20841168,0.00016438,2]
[366081441,1750054242956,-139.93158832,0.00016438,2]
[366081442,1750054242967,-1155.26,0.00016438,2]
[366081443,1750054242977,-490.0,0.00016438,2]
[366081444,1750054242987,-716.08,0.00016438,2]
[366081445,1750054242997,-490.0,0.00016438,2]
[366081446,1750054243007,-587.96,0.00016438,2]
[366081447,1750054243017,-490.0,0.00016438,2]
[366081448,1750054243027,-1122.68,0.00016438,2]
[366081449,1750054243037,-490.0,0.00016438,2]
[366081450,1750054243047,-490.0,0.00016438,2]
[366081451,1750054243056,-490.0,0.00016438,2]
[366081452,1750054243066,-876.04,0.00016438,2]
[366081453,1750054243076,-625.42,0.00016438,2]
[366081454,1750054243087,-490.0,0.00016438,2]
[366081455,1750054243096,-490.0,0.00016438,2]
[366081456,1750054243107,-836.43,0.00016438,2]
[366081457,1750054243117,-1641.24,0.00016438,2]
[366081458,1750054243128,-490.0,0.00016438,2]
[366081459,1750054243138,-243.833566,0.00016438,2]
[366081460,1750054243148,-844.95,0.00016438,2]
[366081461,1750054243159,-490.0,0.00016438,2]
[366081462,1750054243168,-490.0,0.00016438,2]
[366081463,1750054243178,-712.85,0.00016438,2]
[366081464,1750054243189,-1731.73,0.00016438,2]
[366081465,1750054243199,-490.0,0.00016438,2]
[366081466,1750054243208,-490.0,0.00016438,2]
[366081467,1750054243219,-2195.27,0.00016438,2]
[366081468,1750054243228,-120.40675613,0.00016438,2]
[366081471,1750054248090,-369.59324387,0.00016438,2]
[366081472,1750054248100,-490.0,0.00016438,2]
[366081473,1750054248110,-490.0,0.00016438,2]
[366081474,1750054248120,-490.0,0.00016438,2]
[366081475,1750054248130,-490.0,0.00016438,2]
[366081476,1750054248140,-307.21787381,0.00016438,2]
[366081477,1750054290964,1322.10456235,0.00015565,2]
[366081478,1750054290988,20000.0,0.00015565,2]
[366081479,1750054291013,2577.89543765,0.00015565,2]
[366081480,1750054295559,172.34508027,0.00024658,120]
[366081481,1750054297134,172.34508027,0.00024658,120]
[366081482,1750054298081,172.34508027,0.00024658,120]
[366081483,1750054299166,172.34508027,0.00024658,120]
[366081484,1750054300474,172.34508027,0.00024658,120]
[366081485,1750054316065,158.13,0.00013699,2]
[366081487,1750054323252,172.34508027,0.00024658,120]
[366081489,1750054503864,200.0,0.00015293,7]
[366081490,1750054524439,500.0,0.00024,120]
[366081491,1750054567244,172.0,0.00015268,2]
[366081492,1750054571855,203.0,0.0001515,2]
[366081493,1750054620856,166.84,0.00015721,2]
[366081494,1750054653512,150.0,0.00015258,2]
[366081496,1750054705926,808.08,0.00015242,2]
[366081497,1750054739477,-496.77,0.00016147,2]
[366081498,1750054739515,-497.66,0.00016147,2]
[366081499,1750054739554,-492.44,0.00016147,2]
[366081500,1750054739589,-301.96,0.00016147,2]
[366081501,1750054739626,-491.08,0.00016147,2]
[366081502,1750054739661,-304.44,0.00016147,2]
[366081503,1750054739697,-494.8,0.00016147,2]
[366081504,1750054739732,-504.36,0.00016147,2]
[366081505,1750054739768,-491.15,0.00016147,2]
[366081506,1750054739801,-303.9,0.00016147,2]
[366081507,1750054739835,-497.81,0.00016147,2]
[366081508,1750054739878,-304.31,0.00016147,2]
[366081509,1750054739912,-304.6,0.00016147,2]
[366081510,1750054739948,-508.15,0.00016147,2]
[366081511,1750054739984,-500.35,0.00016147,2]
[366081512,1750054740020,-503.9,0.00016147,2]
[366081513,1750054740047,-305.54,0.00016147,2]
[366081514,1750054740058,-191.23,0.00016147,2]
[366081515,1750054740076,-299.13,0.00016147,2]
[366081516,1750054740087,-198.53,0.00016148,2]
[366081517,1750054740109,-310.43,0.00016148,2]
[366081518,1750054740119,-182.01,0.00016148,2]
[366081519,1750054740131,-301.96,0.00016148,2]
[366081520,1750054740156,-22.03,0.00016148,2]
[366081521,1750054740166,-469.05,0.00016148,2]
[366081522,1750054740183,-34.0,0.00016148,2]
[366081523,1750054740194,-270.44,0.00016148,2]
[366081524,1750054740211,-233.22,0.00016148,2]
[366081525,1750054740221,-261.58,0.00016148,2]
[366081526,1750054740242,-231.96,0.00016148,2]
[366081527,1750054740252,-272.4,0.00016148,2]
[366081528,1750054740271,-237.36,0.00016148,2]
[366081529,1750054740281,-253.79,0.00016148,2]
[366081530,1750054740307,-52.11,0.00016148,2]
[366081531,1750054740318,-251.79,0.00016148,2]
[366081532,1750054740336,-242.67,0.00016148,2]
[366081533,1750054740347,-255.14,0.00016148,2]
[366081534,1750054740365,-49.45,0.00016148,2]
[366081535,1750054740375,-254.86,0.00016148,2]
[366081536,1750054740392,-243.49,0.00016148,2]
[366081537,1750054740403,-61.11,0.00016148,2]
[366081538,1750054740416,-443.19,0.00016148,2]
[366081539,1750054740426,-64.96,0.00016148,2]
[366081540,1750054740457,-431.32,0.00016148,2]
[366081541,1750054740467,-69.03,0.00016148,2]
[366081542,1750054740484,-231.88,0.00016148,2]
[366081543,1750054740494,-272.02,0.00016148,2]
[366081544,1750054740511,-4.64,0.00016148,2]
[366081546,1750054898606,6006.0,0.0001589,2]
[366081547,1750054931810,203.0,0.00015645,2]
[366081548,1750055117827,200.017534,0.00024,120]
[366081549,1750055123926,499.17,0.00015,2]
[366081558,1750055258032,511.54,0.00016,2]
[366081559,1750055369130,150.22,0.00013699,2]
[366081572,1750055431987,-151.0,0.00016138,2]
[366081573,1750055431998,-207.4,0.00016138,2]
[366081574,1750055432008,-300.0,0.00016145,2]
[366081575,1750055432018,-81.42057194,0.00016145,2]
[366081576,1750055432267,-218.57942806,0.00016145,2]
[366081578,1750055432282,-93.75224419,0.00016145,2]
[366081581,1750055432294,-1106.24775581,0.00016145,2]
[366081583,1750055432304,-300.0,0.00016145,2]
[366081584,1750055432314,-301.62,0.00016146,2]
[366081585,1750055432325,-302.19,0.00016146,2]
[366081586,1750055432335,-300.56,0.00016146,2]
[366081587,1750055432345,-303.14,0.00016146,2]
[366081588,1750055432355,-303.78,0.00016146,2]
[366081589,1750055432365,-304.83,0.00016146,2]
[366081590,1750055432375,-302.16,0.00016146,2]
[366081591,1750055432386,-303.86,0.00016146,2]
[366081592,1750055432395,-303.54,0.00016146,2]
[366081593,1750055432406,-302.79,0.00016146,2]
[366081594,1750055432416,-305.71,0.00016146,2]
[366081596,1750055432426,-495.5,0.00016147,2]
[366081598,1750055432435,-502.4,0.00016147,2]
[366081600,1750055432444,-509.95,0.00016147,2]
[366081601,1750055432455,-304.06,0.00016147,2]
[366081603,1750055432465,-491.94,0.00016147,2]
[366081605,1750055432476,-230.78,0.00016148,2]
[366081607,1750055432486,-503.96,0.00016148,2]
[366081609,1750055432495,-300.58,0.00016148,2]
[366081611,1750055432505,-21069.75736311,0.00016148,2]
[366081613,1750055432517,-750.22960808,0.00016148,2]
[366081811,1750055437914,-274.40678442,0.00016148,2]
[366081812,1750055437926,-5230.41802002,0.00016148,2]
[366081813,1750055437939,-821.73330075,0.00016148,2]
[366081814,1750055437982,-280.407,0.00016148,2]
[366081815,1750055437994,-1573.03792362,0.00016148,2]
[366081816,1750055438005,-496.47,0.00016148,2]
[366081817,1750055438016,-501.67,0.00016149,2]
[366081818,1750055438026,-503.36,0.00016149,2]
[366081819,1750055438037,-497.81,0.00016149,2]
[366081820,1750055438047,-493.75,0.00016149,2]
[366081821,1750055438058,-505.65,0.00016149,2]
[366081822,1750055438068,-499.6,0.00016149,2]
[366081823,1750055438078,-494.7,0.00016149,2]
[366081824,1750055438089,-497.27,0.00016149,2]
[366081825,1750055438100,-304.94,0.00016149,2]
[366081826,1750055438111,-60.43145411,0.00016149,2]
[366081827,1750055438124,-436.84854589,0.00016149,2]
[366081828,1750055438134,-150.0,0.0001615,2]
[366081829,1750055438145,-79.39145411,0.0001615,2]
[366081830,1750055438157,-70.60854589,0.0001615,2]
[366081831,1750055438168,-259.19845411,0.0001615,2]
[366081846,1750055438351,-240.80154589,0.0001615,2]
[366081847,1750055438362,-150.0,0.0001615,2]
[366081848,1750055438373,-150.0,0.0001615,2]
[366081849,1750055438384,-150.0,0.0001615,2]
[366081850,1750055438395,-493.89,0.0001615,2]
[366081851,1750055438406,-495.81,0.0001615,2]
[366081852,1750055438416,-301.37,0.0001615,2]
[366081853,1750055438427,-34.79317299,0.0001615,2]
[366081894,1750055440795,-466.76682701,0.0001615,2]
[366081895,1750055440806,-497.41,0.0001615,2]
[366081896,1750055440817,-304.53,0.0001615,2]
[366081897,1750055440827,-508.84,0.0001615,2]
[366081898,1750055440838,-491.94,0.0001615,2]
[366081899,1750055440848,-506.94,0.0001615,2]
[366081900,1750055440859,-305.76,0.0001615,2]
[366081901,1750055440869,-303.05,0.0001615,2]
[366081902,1750055440879,-302.73,0.0001615,2]
[366081903,1750055440889,-507.59,0.0001615,2]
[366081904,1750055440899,-500.22,0.0001615,2]
[366081905,1750055440910,-300.89,0.0001615,2]
[366081906,1750055440920,-303.64,0.0001615,2]
[366081907,1750055440930,-240.69693829,0.00016151,2]
[366081908,1750055441045,-59.36306171,0.00016151,2]
[366081909,1750055441056,-497.46,0.00016151,2]
[366081910,1750055441067,-500.67,0.00016151,2]
[366081911,1750055441077,-509.53,0.00016151,2]
[366081912,1750055441088,-300.86,0.00016151,2]
[366081913,1750055441099,-491.99,0.00016151,2]
[366081914,1750055441110,-506.94,0.00016151,2]
[366081915,1750055441120,-498.63,0.00016151,2]
[366081916,1750055441130,-150.28623553,0.00016151,2]
[366081917,1750055441140,-150.0,0.00016151,2]
[366081918,1750055441151,-150.92880965,0.00016151,2]
[366081919,1750055441161,-150.0,0.00016151,2]
[366081920,1750055441171,-150.0,0.00016151,2]
[366081921,1750055441182,-150.0,0.00016151,2]
[366081922,1750055441192,-150.0,0.00016151,2]
[366081923,1750055441202,-150.0,0.00016151,2]
[366081924,1750055441212,-154.25546781,0.00016151,2]
[366081925,1750055441222,-150.0,0.00016151,2]
[366081926,1750055441232,-150.0,0.00016151,2]
[366081927,1750055441243,-496.95,0.00016151,2]
[366081928,1750055441252,-305.03,0.00016151,2]
[366081929,1750055441262,-304.63,0.00016152,2]
[366081930,1750055441272,-491.8,0.00016153,2]
[366081931,1750055441283,-500.58,0.00016153,2]
[366081932,1750055441293,-150.0,0.00016154,2]
[366081933,1750055441302,-150.0,0.00016154,2]
[366081934,1750055441313,-154.18565483,0.00016154,2]
[366081935,1750055441323,-150.0,0.00016154,2]
[366081936,1750055441334,-150.0,0.00016154,2]
[366081937,1750055441344,-150.0,0.00016154,2]
[366081938,1750055441355,-150.0,0.00016154,2]
[366081939,1750055441365,-150.0,0.00016154,2]
[366081940,1750055441375,-150.0,0.00016154,2]
[366081941,1750055441386,-150.0,0.00016154,2]
[366081942,1750055441397,-150.0,0.00016154,2]